bitfinex/quotes_BTCUSD_20240629
["timestamp","ask_amount","ask_price","bid_price","bid_amount"]
[1719646721278,1.677914,61235.0,61234.0,0.20174581]
[1719646721478,1.70184569,61235.0,61234.0,0.20174581]
[1719646722645,1.70184569,61235.0,61234.0,0.19577818]
[1719646724354,1.70133679,61235.0,61234.0,0.19577818]
[1719646725977,2.10173679,61235.0,61234.0,0.19577818]
[1719646727569,2.10073272,61235.0,61234.0,0.19577818]
[1719646728146,1.70033272,61235.0,61234.0,0.19577818]
[1719646730861,1.70031829,61235.0,61234.0,0.19577818]
[1719646732933,1.94217076,61235.0,61234.0,0.19577818]
[1719646734109,1.91976647,61235.0,61234.0,0.19577818]
[1719646734333,1.94190412,61235.0,61234.0,0.19577818]
[1719646734537,1.94191043,61235.0,61234.0,0.19577818]
[1719646735818,0.46053643,61235.0,61234.0,0.19577818]
[1719646736190,4.41440843,61235.0,61234.0,0.18529535]
[1719646737208,4.41372509,61235.0,61234.0,0.18529535]
[1719646737415,4.38561509,61235.0,61234.0,0.18529535]
[1719646740193,4.38561509,61235.0,61234.0,0.39269535]
[1719646740194,3.60980709,61235.0,61234.0,0.39269535]
[1719646740527,3.60980709,61235.0,61234.0,0.40214682]
[1719646740528,3.60975916,61235.0,61234.0,0.40214682]
[1719646741819,3.10042816,61235.0,61234.0,0.40214682]
[1719646742910,2.837163,61235.0,61234.0,0.40214682]
[1719646743114,3.10044442,61235.0,61234.0,0.40214682]
[1719646743328,2.837163,61235.0,61234.0,0.40214682]
[1719646743540,3.10039311,61235.0,61234.0,0.40214682]
[1719646744417,2.85853443,61235.0,61234.0,0.40214682]
[1719646744841,3.10039311,61235.0,61234.0,0.40214682]
[1719646746162,3.10040094,61235.0,61234.0,0.40214682]
[1719646748977,0.45977794,61235.0,61234.0,0.40214682]
[1719646749153,4.06669894,61235.0,61234.0,0.40214682]
[1719646749350,4.06661677,61235.0,61234.0,0.40214682]
[1719646749591,3.96321277,61235.0,61234.0,0.39269535]
[1719646750517,3.86751277,61235.0,61234.0,0.39269535]
[1719646750803,3.80527277,61235.0,61234.0,0.39269535]
[1719646751271,3.80527277,61235.0,61234.0,0.40239407]
[1719646751476,3.70957277,61235.0,61234.0,0.40239407]
[1719646751726,3.80527277,61235.0,61234.0,0.40239407]
[1719646752593,3.56339196,61235.0,61234.0,0.40239407]
[1719646752775,3.80527749,61235.0,61234.0,0.40239407]
[1719646755440,3.80527749,61235.0,61234.0,0.39269535]
[1719646755637,3.80527749,61235.0,61234.0,0.18529535]
[1719646755887,3.56339196,61235.0,61234.0,0.18529535]
[1719646756100,3.80527813,61235.0,61234.0,0.18529535]
[1719646756303,3.80527813,61235.0,61234.0,0.19499407]
[1719646756452,3.80541887,61235.0,61234.0,0.19499407]
[1719646757744,3.80541887,61235.0,61234.0,0.21799407]
[1719646758925,3.542117,61235.0,61234.0,0.21799407]
[1719646759130,3.80538088,61235.0,61234.0,0.19499407]
[1719646762385,3.78400393,61235.0,61234.0,0.19499407]
[1719646762580,3.80538655,61235.0,61234.0,0.19499407]
[1719646765554,3.80540209,61235.0,61234.0,0.19499407]
[1719646768869,3.80546259,61235.0,61234.0,0.19499407]
[1719646769065,0.45988559,61235.0,61234.0,0.19499407]
[1719646769325,0.19654,61235.0,61234.0,0.20829535]
[1719646769528,0.43845145,61235.0,61234.0,0.21799815]
[1719646769937,2.76840345,61235.0,61234.0,0.20829535]
[1719646770052,2.76840345,61235.0,61234.0,0.21799951]
[1719646770673,2.78983808,61235.0,61234.0,0.21799951]
[1719646771963,2.76841339,61235.0,61234.0,0.21799951]
[1719646772173,2.79038358,61235.0,61234.0,0.21799951]
[1719646775372,2.76841383,61235.0,61234.0,0.21799951]
[1719646775537,2.79035945,61235.0,61234.0,0.21799951]
[1719646776443,2.61174145,61235.0,61234.0,0.21799951]
[1719646777230,2.54941962,61235.0,61231.0,0.5]
[1719646777436,0.02,61230.0,61222.0,0.7064]
[1719646777660,0.2081,61228.0,61222.0,0.5]
[1719646777910,0.2081,61228.0,61220.0,0.065468]
[1719646777911,5.15,61227.0,61223.0,0.16233898]
[1719646778061,4.709323,61226.0,61223.0,0.16233898]
[1719646778261,0.0957,61224.0,61223.0,0.16233898]
[1719646778613,4.80748,61224.0,61223.0,0.16233898]
[1719646778726,4.90748,61224.0,61223.0,0.16233898]
[1719646778921,4.667723,61224.0,61223.0,0.16233898]
[1719646779127,4.6119773,61224.0,61223.0,0.17633898]
[1719646779324,4.6119773,61224.0,61223.0,0.014]
[1719646779651,4.6119773,61224.0,61223.0,0.028]
[1719646779870,4.6119773,61224.0,61223.0,0.014]
[1719646780469,4.6119773,61224.0,61223.0,0.028]
[1719646780798,4.6119773,61224.0,61223.0,0.014]
[1719646781002,4.6129773,61224.0,61223.0,0.014]
[1719646781209,0.2194443,61224.0,61223.0,0.014]
[1719646781409,4.6418033,61224.0,61223.0,0.014]
[1719646781638,4.618059,61224.0,61223.0,0.014]
[1719646781836,4.51315031,61224.0,61223.0,0.014]
[1719646782016,4.45138831,61224.0,61223.0,0.014]
[1719646782398,4.39553631,61224.0,61223.0,0.014]
[1719646782815,4.28639431,61224.0,61223.0,0.014]
[1719646783653,4.23915731,61224.0,61223.0,0.014]
[1719646784876,4.22398378,61224.0,61223.0,0.014]
[1719646785548,4.19929478,61224.0,61223.0,0.014]
[1719646786065,3.83715978,61224.0,61223.0,0.014]
[1719646786463,1.69673078,61224.0,61223.0,0.56183898]
[1719646786670,1.69673078,61224.0,61223.0,0.58483898]
[1719646786671,1.73023078,61224.0,61223.0,0.58483898]
[1719646786877,1.73023078,61224.0,61223.0,0.59189862]
[1719646788126,1.72982507,61224.0,61223.0,0.59189862]
[1719646791090,1.72982507,61224.0,61223.0,0.20639862]
[1719646791496,1.707519,61224.0,61223.0,0.20639862]
[1719646791631,1.72964195,61224.0,61223.0,0.20639862]
[1719646791829,1.707519,61224.0,61223.0,0.20639862]
[1719646792029,1.72847641,61224.0,61223.0,0.20639862]
[1719646792720,0.21765741,61224.0,61223.0,0.20639862]
[1719646793048,5.26765741,61224.0,61223.0,0.20639862]
[1719646793249,5.26765741,61224.0,61223.0,0.19933898]
[1719646793750,4.84464341,61224.0,61223.0,0.19933898]
[1719646793953,4.80373441,61224.0,61223.0,0.19933898]
[1719646794542,4.76256733,61224.0,61223.0,0.19933898]
[1719646795147,4.04176633,61224.0,61223.0,0.19933898]
[1719646795376,4.04176633,61224.0,61223.0,0.20639545]
[1719646795377,3.44628833,61224.0,61223.0,0.20639545]
[1719646797756,3.42559,61224.0,61223.0,0.20639545]
[1719646797974,3.44743348,61224.0,61223.0,0.20639545]
[1719646798709,3.12711887,61224.0,61223.0,0.20639545]
[1719646800019,3.03141887,61224.0,61223.0,0.20639545]
[1719646800189,3.12711887,61224.0,61223.0,0.20639545]
[1719646800779,3.12724201,61224.0,61223.0,0.20639545]
[1719646801086,3.22724201,61224.0,61223.0,0.20639545]
[1719646801455,3.22724201,61224.0,61223.0,0.19933898]
[1719646801902,3.22724201,61224.0,61223.0,0.20639967]
[1719646803574,3.20527539,61224.0,61223.0,0.20639967]
[1719646803841,3.22724653,61224.0,61223.0,0.20639967]
[1719646804084,2.88535102,61224.0,61223.0,0.20639967]
[1719646804337,2.90732019,61224.0,61223.0,0.20639967]
[1719646805601,4.72843117,61224.0,61223.0,0.20639967]
[1719646805806,0.21766917,61224.0,61223.0,0.19933898]
[1719646806185,4.72843117,61224.0,61223.0,0.19933898]
[1719646806571,4.706462,61224.0,61223.0,0.19933898]
[1719646806773,4.72792173,61224.0,61223.0,0.19933898]
[1719646809864,4.72727765,61224.0,61223.0,0.19933898]
[1719646812729,4.72727765,61224.0,61223.0,0.40673898]
[1719646813088,4.72731809,61224.0,61223.0,0.41379967]
[1719646813611,4.72815809,61224.0,61223.0,0.41379967]
[1719646814213,4.72815809,61224.0,61223.0,0.40673898]
[1719646815526,4.42890109,61224.0,61223.0,0.40673898]
[1719646816411,4.342445,61224.0,61223.0,0.40673898]
[1719646816633,4.14465358,61224.0,61223.0,0.40673898]
[1719646816883,4.14465357,61224.0,61223.0,0.40673898]
[1719646818062,3.58965557,61224.0,61223.0,0.40673898]
[1719646819354,3.58965557,61224.0,61223.0,0.19933898]
[1719646819561,3.58884187,61224.0,61223.0,0.19933898]
[1719646822577,3.5884426,61224.0,61223.0,0.19933898]
[1719646822809,3.5233246,61224.0,61223.0,0.19933898]
[1719646824783,3.2565366,61224.0,61223.0,0.19933898]
[1719646825959,3.25648332,61224.0,61223.0,0.19933898]
[1719646827431,3.25648332,61224.0,61223.0,0.20640102]
[1719646829242,4.044335,61224.0,61223.0,0.20640102]
[1719646829451,0.21675829,61224.0,61223.0,0.20640102]
[1719646829843,3.88731929,61224.0,61223.0,0.20640102]
[1719646830567,3.79411629,61224.0,61223.0,0.20640102]
[1719646830767,3.64952829,61224.0,61223.0,0.20640102]
[1719646830914,3.52679429,61224.0,61223.0,0.20640102]
[1719646831120,3.37809429,61224.0,61223.0,0.20640102]
[1719646832358,3.357876,61224.0,61223.0,0.20640102]
[1719646832523,3.37781914,61224.0,61223.0,0.20640102]
[1719646835683,3.37782111,61224.0,61223.0,0.20640102]
[1719646837350,3.37782111,61224.0,61223.0,0.02106204]
[1719646837555,3.75942111,61224.0,61223.0,0.037]
[1719646838948,3.75982258,61224.0,61223.0,0.037]
[1719646839355,3.739476,61224.0,61223.0,0.037]
[1719646839609,3.75981313,61224.0,61223.0,0.037]
[1719646839925,4.00162862,61224.0,61223.0,0.037]
[1719646842129,4.00154141,61224.0,61223.0,0.037]
[1719646843982,3.82594141,61224.0,61223.0,0.037]
[1719646845292,3.82594141,61224.0,61223.0,0.037924]
[1719646848589,3.82591188,61224.0,61223.0,0.037924]
[1719646851128,0.66457588,61224.0,61223.0,0.037924]
[1719646851524,5.17533788,61224.0,61223.0,0.0446765]
[1719646851683,5.15505925,61224.0,61223.0,0.037924]
[1719646851911,5.17533442,61224.0,61223.0,0.037924]
[1719646852314,5.1753134,61224.0,61223.0,0.037924]
[1719646852969,5.1753134,61224.0,61223.0,0.03318162]
[1719646853542,5.1753134,61224.0,61223.0,0.02812606]
[1719646853742,5.1753134,61224.0,61215.0,0.065473]
[1719646853743,5.44223592,61224.0,61215.0,0.065473]
[1719646853944,5.44223592,61224.0,61187.0,0.03278]
[1719646853945,0.4028,61221.0,61212.0,0.2241]
[1719646854142,0.4028,61221.0,61212.0,0.38643898]
[1719646854143,0.0957,61213.0,61212.0,0.38643898]
[1719646854344,2.965727,61213.0,61212.0,0.38643898]
[1719646854542,3.009024,61213.0,61212.0,0.38643898]
[1719646855090,3.0299554,61213.0,61212.0,0.38643898]
[1719646855240,3.0299554,61213.0,61212.0,0.40943898]
[1719646855666,3.0309554,61213.0,61212.0,0.42243898]
[1719646855883,3.0319554,61213.0,61212.0,0.43643898]
[1719646857141,3.0309554,61213.0,61212.0,0.42343898]
[1719646857438,3.0309554,61213.0,61212.0,0.40943898]
[1719646857784,3.0319554,61213.0,61212.0,0.4184398]
[1719646857981,3.03098602,61213.0,61212.0,0.4184398]
[1719646858181,3.03088809,61213.0,61212.0,0.4184398]
[1719646859966,3.03091378,61213.0,61212.0,0.4184398]
[1719646860164,3.03091378,61213.0,61212.0,0.38585068]
[1719646860604,3.03091378,61213.0,61212.0,0.19933898]
[1719646861058,3.011024,61213.0,61212.0,0.19933898]
[1719646861284,3.03084954,61213.0,61212.0,0.19933898]
[1719646862236,2.88316054,61213.0,61212.0,0.19933898]
[1719646864085,2.88299786,61213.0,61212.0,0.19933898]
[1719646864298,2.88299786,61213.0,61212.0,0.20880357]
[1719646864514,2.88312178,61213.0,61212.0,0.20880357]
[1719646867205,2.863335,61213.0,61212.0,0.20880357]
[1719646867392,2.88322434,61213.0,61212.0,0.20880357]
[1719646869438,2.88322434,61213.0,61212.0,0.20350637]
[1719646870403,2.88329297,61213.0,61212.0,0.20350637]
[1719646873692,2.88330938,61213.0,61212.0,0.20350637]
[1719646874307,4.32720738,61213.0,61212.0,0.20350637]
[1719646874501,0.21767438,61213.0,61212.0,0.20350637]
[1719646874909,4.07707038,61213.0,61212.0,0.20350637]
[1719646875109,4.27819738,61213.0,61212.0,0.20350637]
[1719646876319,4.17227738,61213.0,61212.0,0.20350637]
[1719646877121,3.72563738,61213.0,61212.0,0.20350637]
[1719646877318,3.72563738,61213.0,61212.0,0.20443037]
[1719646877657,3.72562621,61213.0,61212.0,0.20443037]
[1719646878383,3.72646621,61213.0,61212.0,0.20443037]
[1719646878921,3.13905421,61213.0,61212.0,0.20443037]
[1719646879120,3.03425421,61213.0,61212.0,0.20443037]
[1719646879986,3.00314021,61213.0,61212.0,0.20443037]
[1719646880185,2.86816021,61213.0,61212.0,0.20443037]
[1719646881043,2.84858521,61213.0,61212.0,0.20443037]
[1719646881279,1.28580721,61213.0,61212.0,0.40443037]
[1719646881491,1.26509521,61213.0,61212.0,0.40443037]
[1719646881706,1.26509521,61213.0,61212.0,0.82373037]
[1719646881963,1.26509521,61213.0,61212.0,0.81426578]
[1719646882191,1.26509521,61213.0,61212.0,0.82375907]
[1719646882869,1.26464021,61213.0,61212.0,0.82375907]
[1719646883513,1.26470505,61213.0,61212.0,0.82375907]
[1719646884451,1.26470505,61213.0,61212.0,0.62375907]
[1719646884892,1.26470505,61213.0,61212.0,0.60525112]
[1719646886787,1.26433107,61213.0,61212.0,0.60525112]
[1719646887309,1.26433115,61213.0,61212.0,0.60525112]
[1719646887961,1.26433115,61213.0,61212.0,0.18595112]
[1719646889355,0.94562936,61213.0,61212.0,0.18595112]
[1719646889894,0.94572671,61213.0,61212.0,0.18595112]
[1719646891502,1.04572671,61213.0,61212.0,0.18595112]
[1719646893321,1.04575865,61213.0,61212.0,0.18595112]
[1719646896440,1.02643021,61213.0,61212.0,0.18595112]
[1719646896588,1.0457987,61213.0,61212.0,0.18595112]
[1719646896991,1.04579805,61213.0,61212.0,0.18595112]
[1719646897236,1.04579805,61213.0,61212.0,0.04741729]
[1719646897461,1.45249805,61213.0,61212.0,0.02441729]
[1719646897891,1.45249805,61213.0,61212.0,0.014924]
[1719646899558,1.45306974,61213.0,61212.0,0.014924]
[1719646899787,1.45306937,61213.0,61212.0,0.014924]
[1719646900611,1.45306937,61213.0,61203.0,0.000924]
[1719646900612,1.19367631,61213.0,61203.0,0.000924]
[1719646900824,0.24186642,61205.0,61203.0,0.000924]
[1719646901029,2.339464,61204.0,61203.0,0.000924]
[1719646901198,2.260664,61204.0,61203.0,0.000924]
[1719646902277,2.261664,61204.0,61203.0,0.000924]
[1719646902485,2.28160316,61204.0,61203.0,0.000924]
[1719646902895,2.262664,61204.0,61203.0,0.014924]
[1719646903097,2.2831078,61204.0,61203.0,0.037924]
[1719646904398,2.2831078,61204.0,61203.0,0.59926298]
[1719646904399,1.8886258,61204.0,61203.0,0.59926298]
[1719646904898,1.8665378,61204.0,61203.0,0.59926298]
[1719646906282,1.86628419,61204.0,61203.0,0.59926298]
[1719646906685,1.86630623,61204.0,61203.0,0.59926298]
[1719646906883,1.79184323,61204.0,61203.0,0.59926298]
[1719646907125,1.79184323,61204.0,61203.0,0.6053766]
[1719646907670,2.09998323,61204.0,61203.0,0.6053766]
[1719646909104,2.07522723,61204.0,61203.0,0.6053766]
[1719646909344,2.055015,61204.0,61203.0,0.6053766]
[1719646909573,2.07528011,61204.0,61203.0,0.6053766]
[1719646911456,0.32082811,61204.0,61203.0,0.8053766]
[1719646911672,0.41652811,61204.0,61203.0,0.8053766]
[1719646912086,0.41652811,61204.0,61203.0,0.8253766]
[1719646912087,0.396263,61204.0,61203.0,0.8253766]
[1719646920245,0.396263,61204.0,61203.0,0.4063766]
[1719646920475,0.396263,61204.0,61203.0,0.4263766]
[1719646922822,0.396263,61204.0,61203.0,0.4063766]
[1719646923270,0.396263,61204.0,61203.0,0.4263766]
[1719646923807,0.396263,61204.0,61203.0,0.2263766]
[1719646924105,0.396263,61204.0,61203.0,0.2063766]
[1719646924288,0.396263,61204.0,61203.0,0.20633359]
[1719646929166,0.39619432,61204.0,61203.0,0.20633359]
[1719646933198,0.39619432,61204.0,61203.0,0.22633359]
[1719646935534,0.30049432,61204.0,61203.0,0.22633359]
[1719646935737,0.37661332,61204.0,61203.0,0.22633359]
[1719646937363,0.37661332,61204.0,61203.0,0.66243359]
[1719646939458,0.32513432,61204.0,61203.0,0.66243359]
[1719646941457,0.10193132,61204.0,61203.0,0.66243359]
[1719646941685,0.0977,61204.0,61203.0,0.66243359]
[1719646942228,0.220451,61204.0,61203.0,0.83051997]
[1719646942383,0.220451,61204.0,61203.0,1.03051997]
[1719646942384,0.00284,61204.0,61203.0,1.03051997]
[1719646942711,0.09854,61204.0,61203.0,1.03663579]
[1719646943896,0.00284,61204.0,61203.0,1.03663579]
[1719646944105,0.09854,61204.0,61203.0,1.03663579]
[1719646948583,0.00284,61204.0,61203.0,0.81663579]
[1719646948774,0.09854,61204.0,61203.0,0.81663579]
[1719646949132,0.09854,61204.0,61203.0,1.03663579]
[1719646950142,0.09754,61204.0,61203.0,1.03663579]
[1719646950565,0.09754,61204.0,61203.0,1.03563579]
[1719646950710,0.09854,61204.0,61203.0,1.03563579]
[1719646951110,0.09954,61204.0,61203.0,1.04863579]
[1719646951402,0.00284,61204.0,61203.0,1.03563579]
[1719646951587,0.08601697,61204.0,61203.0,1.04863579]
[1719646953533,0.08601697,61204.0,61203.0,1.04832679]
[1719646953990,0.001,61204.0,61203.0,1.04832679]
[1719646954205,0.0967,61204.0,61203.0,1.04832679]
[1719646955311,0.001,61204.0,61203.0,1.04832679]
[1719646955515,0.0967,61204.0,61203.0,1.04832679]
[1719646957373,0.0967,61204.0,61203.0,0.82828594]
[1719646957569,0.0967,61204.0,61203.0,0.84828594]
[1719646957777,0.0967,61204.0,61203.0,0.43798594]
[1719646958419,1.094473,61204.0,61203.0,0.41798594]
[1719646958567,1.094473,61204.0,61203.0,0.43798594]
[1719646958568,1.319773,61204.0,61203.0,0.43798594]
[1719646958783,1.419773,61204.0,61203.0,0.43798594]
[1719646959741,1.44304517,61204.0,61203.0,0.43798594]
[1719646960249,1.44354245,61204.0,61203.0,0.43798594]
[1719646960596,1.21824245,61204.0,61203.0,0.43798594]
[1719646963177,0.95313823,61204.0,61203.0,0.43798594]
[1719646963381,0.21946945,61204.0,61203.0,0.43798594]
[1719646963809,1.16434445,61204.0,61203.0,0.43798594]
[1719646964010,0.1957,61204.0,61203.0,0.43798594]
[1719646964217,1.140575,61204.0,61203.0,0.43798594]
[1719646965376,1.16441802,61204.0,61203.0,0.43798594]
[1719646966538,1.140575,61204.0,61203.0,0.43798594]
[1719646966680,1.16444106,61204.0,61203.0,0.43798594]
[1719646968685,1.59219806,61204.0,61203.0,0.43798594]
[1719646969982,1.59214523,61204.0,61203.0,0.43798594]
[1719646970187,1.53926423,61204.0,61203.0,0.43798594]
[1719646970357,1.11075723,61204.0,61203.0,0.43798594]
[1719646971941,0.94732723,61204.0,61203.0,0.43798594]
[1719646972174,0.81360723,61204.0,61203.0,0.43798594]
[1719646973247,0.81360866,61204.0,61203.0,0.43798594]
[1719646974939,0.81360866,61204.0,61203.0,0.84218594]
[1719646975141,0.21951466,61204.0,61203.0,0.84218594]
[1719646976082,0.1957,61204.0,61203.0,0.84218594]
[1719646976280,0.0957,61204.0,61203.0,0.84218594]
[1719646977768,0.0957,61204.0,61203.0,1.04218594]
[1719646982580,0.10084,61213.0,61212.0,0.72]
[1719646982787,0.00084,61213.0,61212.0,1.07033898]
[1719646983012,0.16656508,61213.0,61212.0,1.51523747]
[1719646983473,0.16656508,61213.0,61212.0,1.58070947]
[1719646983583,0.26226508,61213.0,61212.0,1.58070947]
[1719646983790,0.09654,61213.0,61212.0,1.58070947]
[1719646984870,0.09654,61213.0,61212.0,1.59470947]
[1719646985493,0.09654,61213.0,61212.0,1.58070947]
[1719646985701,0.09654,61213.0,61212.0,1.59470947]
[1719646985981,0.09654,61213.0,61212.0,1.60870947]
[1719646988374,0.00084,61213.0,61212.0,1.60870947]
[1719646988582,0.09654,61213.0,61212.0,1.60870947]
[1719646988782,0.00084,61213.0,61212.0,1.60870947]
[1719646989359,0.09654,61213.0,61212.0,1.60870947]
[1719646990102,0.00084,61213.0,61212.0,1.60870947]
[1719646990304,0.09654,61213.0,61212.0,1.60870947]
[1719646992862,0.00084,61213.0,61212.0,1.60870947]
[1719646993262,0.09654,61213.0,61212.0,1.60870947]
[1719646994280,0.09654,61213.0,61212.0,1.80870947]
[1719646994281,0.00084,61213.0,61212.0,1.80870947]
[1719646997790,0.09654,61213.0,61212.0,1.80870947]
[1719647001975,0.09654,61213.0,61212.0,1.98110947]
[1719647001976,0.00084,61213.0,61212.0,1.98110947]
[1719647003370,0.00084,61213.0,61212.0,1.96710947]
[1719647003592,0.00084,61213.0,61212.0,1.98110947]
[1719647004117,0.00084,61213.0,61212.0,1.96710947]
[1719647004345,0.00084,61213.0,61212.0,1.98110947]
[1719647004800,0.00084,61213.0,61212.0,1.96710947]
[1719647005482,0.00084,61213.0,61212.0,1.98110947]
[1719647016863,0.00084,61213.0,61212.0,1.57690947]
[1719647017064,0.00084,61213.0,61212.0,1.97320947]
[1719647022091,0.00084,61213.0,61212.0,1.57220947]
[1719647022295,0.00084,61213.0,61212.0,1.35690947]
[1719647023494,0.00084,61213.0,61212.0,1.57690947]
[1719647051364,0.00486733,61218.0,61217.0,0.42]
[1719647051502,0.00486733,61218.0,61217.0,0.60533898]
[1719647051706,0.00486733,61218.0,61217.0,0.61204853]
[1719647052325,0.00486733,61218.0,61217.0,0.39204853]
[1719647052524,0.00486733,61218.0,61217.0,0.59204853]
[1719647052525,0.3356213,61218.0,61217.0,0.59204853]
[1719647052726,0.16976733,61218.0,61217.0,0.61204853]
[1719647052935,0.16976733,61218.0,61217.0,0.59204853]
[1719647053364,0.16976733,61218.0,61217.0,0.60604853]
[1719647053575,0.26976733,61218.0,61217.0,0.62604853]
[1719647054183,0.26976733,61218.0,61217.0,0.64004853]
[1719647054730,0.26976733,61218.0,61217.0,0.42004853]
[1719647054887,0.44205233,61218.0,61217.0,0.42004853]
[1719647057139,0.26976733,61218.0,61217.0,0.42004853]
[1719647057542,0.26976733,61218.0,61217.0,0.44004853]
[1719647057744,0.26976733,61218.0,61217.0,0.42004853]
[1719647057946,1.14762233,61218.0,61217.0,0.42004853]
[1719647058781,1.17504223,61218.0,61217.0,0.42004853]
[1719647061729,1.24332233,61218.0,61217.0,0.42004853]
[1719647061930,1.27076854,61218.0,61217.0,0.42004853]
[1719647062129,1.25362354,61218.0,61217.0,0.42004853]
[1719647063168,0.92542054,61218.0,61217.0,0.42004853]
[1719647063369,0.92546458,61218.0,61217.0,0.42004853]
[1719647065241,0.92540796,61218.0,61217.0,0.42004853]
[1719647065446,1.09108042,61218.0,61217.0,0.42004853]
[1719647066211,0.92540796,61218.0,61217.0,0.37650294]
[1719647066413,0.92540796,61218.0,61217.0,0.37152688]
[1719647066643,1.09107651,61218.0,61217.0,0.37152688]
[1719647066796,1.09107651,61218.0,61217.0,0.35315517]
[1719647068385,0.89797433,61218.0,61217.0,0.35315517]
[1719647068593,0.79167985,61218.0,61217.0,0.35315517]
[1719647069014,0.79169155,61218.0,61217.0,0.35315517]
[1719647069161,0.62603209,61218.0,61217.0,0.35315517]
[1719647070456,0.79168481,61218.0,61217.0,0.35315517]
[1719647071057,0.89252481,61218.0,61217.0,0.35315517]
[1719647071459,0.72687209,61218.0,61217.0,0.35315517]
[1719647071662,0.75831954,61218.0,61217.0,0.35315517]
[1719647072229,1.87939754,61218.0,61217.0,0.35315517]
[1719647072810,1.61939754,61218.0,61217.0,0.35315517]
[1719647073281,1.32319754,61218.0,61217.0,0.35315517]
[1719647073710,1.25769754,61218.0,61217.0,0.35315517]
[1719647074752,1.065018,61218.0,61217.0,0.35315517]
[1719647074962,1.22564593,61218.0,61217.0,0.35315517]
[1719647077384,1.22564593,61218.0,61217.0,0.22004853]
[1719647077385,1.06000452,61218.0,61217.0,0.22004853]
[1719647077587,1.06000452,61218.0,61217.0,0.21510186]
[1719647078012,1.06121795,61218.0,61217.0,0.21510186]
[1719647078826,1.06121795,61218.0,61217.0,0.20110186]
[1719647079020,1.06121795,61218.0,61217.0,0.21510186]
[1719647079285,1.06121795,61218.0,61217.0,0.20110186]
[1719647079482,1.06121795,61218.0,61217.0,0.21510186]
[1719647079883,1.06121795,61218.0,61217.0,0.21005304]
[1719647081258,1.06183655,61218.0,61217.0,0.21005304]
[1719647081750,1.06183652,61218.0,61217.0,0.21005304]
[1719647083776,3.35741252,61218.0,61217.0,0.21005304]
[1719647084051,3.00741252,61218.0,61217.0,0.20334349]
[1719647084469,3.00762018,61218.0,61217.0,0.20334349]
[1719647085382,2.30311918,61218.0,61217.0,0.20334349]
[1719647085809,1.35759918,61218.0,61217.0,0.20334349]
[1719647086069,1.35759918,61218.0,61217.0,0.20889146]
[1719647086070,1.45329918,61218.0,61217.0,0.20889146]
[1719647087695,1.424973,61218.0,61217.0,0.20889146]
[1719647087807,1.45415939,61218.0,61217.0,0.20889146]
[1719647090873,1.424973,61218.0,61217.0,0.20889146]
[1719647091118,1.452915,61218.0,61217.0,0.20889146]
[1719647091302,1.424973,61218.0,61217.0,0.19905225]
[1719647091479,1.45291482,61218.0,61217.0,0.19905225]
[1719647092103,1.20222082,61218.0,61217.0,0.19905225]
[1719647092302,1.19144582,61218.0,61217.0,0.19905225]
[1719647093516,1.09574582,61218.0,61217.0,0.19905225]
[1719647093727,1.19144582,61218.0,61217.0,0.19905225]
[1719647093930,1.19173864,61218.0,61217.0,0.19905225]
[1719647094129,1.192116,61218.0,61217.0,0.19905225]
[1719647094287,1.027516,61218.0,61217.0,0.19905225]
[1719647095965,0.129452,61218.0,61217.0,0.53985889]
[1719647096162,0.225152,61218.0,61217.0,0.73665889]
[1719647096769,0.19654,61218.0,61217.0,0.71665889]
[1719647097085,0.33147,61218.0,61217.0,0.73665889]
[1719647097323,0.33147,61218.0,61217.0,0.71665889]
[1719647097449,0.19654,61218.0,61217.0,0.71665889]
[1719647098047,0.326297,61218.0,61217.0,0.71665889]
[1719647098721,0.19654,61218.0,61217.0,0.71665889]
[1719647098923,0.09654,61218.0,61217.0,0.71665889]
[1719647099131,0.10084,61218.0,61217.0,0.73665889]
[1719647099339,0.19654,61218.0,61217.0,0.73665889]
[1719647099506,0.10084,61218.0,61217.0,0.73665889]
[1719647099707,0.36212296,61218.0,61217.0,0.73665889]
[1719647100108,0.19654,61218.0,61217.0,0.73665889]
[1719647100311,0.09654,61218.0,61217.0,0.73665889]
[1719647101545,0.09654,61218.0,61217.0,0.93665889]
[1719647101937,0.00084,61218.0,61217.0,0.93665889]
[1719647102201,0.09654,61218.0,61217.0,0.93665889]
[1719647102939,0.09654,61218.0,61217.0,0.71665889]
[1719647103197,0.26210726,61218.0,61217.0,0.71665889]
[1719647103398,0.19654,61218.0,61217.0,0.73665889]
[1719647103761,0.19654,61218.0,61217.0,0.73758289]
[1719647104618,0.09654,61218.0,61217.0,0.73758289]
[1719647104972,0.09654,61218.0,61217.0,0.71758289]
[1719647105176,0.09654,61218.0,61217.0,0.73758289]
[1719647114097,1.032696,61218.0,61217.0,0.73758289]
[1719647114323,1.042083,61218.0,61217.0,0.73758289]
[1719647114540,1.042083,61218.0,61217.0,0.56078289]
[1719647115724,0.994471,61218.0,61217.0,0.56078289]
[1719647115995,0.19654,61218.0,61217.0,0.56078289]
[1719647116201,0.09654,61218.0,61217.0,0.56078289]
[1719647116424,1.062999,61218.0,61217.0,0.56078289]
[1719647116623,0.928848,61218.0,61217.0,0.56078289]
[1719647116829,1.028848,61218.0,61217.0,0.54078289]
[1719647117026,1.028848,61218.0,61217.0,0.56078289]
[1719647117230,1.19439576,61218.0,61217.0,0.56078289]
[1719647117670,1.2226734,61218.0,61217.0,0.56078289]
[1719647118279,1.22268366,61218.0,61217.0,0.35308289]
[1719647118484,1.05712564,61218.0,61217.0,0.35308289]
[1719647118692,1.028848,61218.0,61217.0,0.35308289]
[1719647118897,1.05729188,61218.0,61217.0,0.35308289]
[1719647119649,1.22285042,61218.0,61217.0,0.35308289]
[1719647120087,1.05729188,61218.0,61217.0,0.35308289]
[1719647121204,0.96159188,61218.0,61217.0,0.35308289]
[1719647121348,1.05729188,61218.0,61217.0,0.35308289]
[1719647121799,0.89184388,61218.0,61217.0,0.35308289]
[1719647121994,0.89181894,61218.0,61217.0,0.35308289]
[1719647122398,1.05737854,61218.0,61217.0,0.35308289]
[1719647122880,0.89181894,61218.0,61217.0,0.35308289]
[1719647123064,1.05738494,61218.0,61217.0,0.35308289]
[1719647123606,1.05739011,61218.0,61217.0,0.35308289]
[1719647123809,0.89181894,61218.0,61217.0,0.35308289]
[1719647124857,0.86568494,61218.0,61217.0,0.35308289]
[1719647125259,0.837266,61218.0,61217.0,0.35308289]
[1719647125462,0.86586021,61218.0,61217.0,0.35308289]
[1719647125873,0.86580862,61218.0,61217.0,0.35308289]
[1719647127763,0.86580862,61218.0,61217.0,0.56778289]
[1719647127764,0.61235862,61218.0,61217.0,0.56778289]
[1719647127924,0.56143562,61218.0,61217.0,0.74818289]
[1719647128488,0.69851865,61218.0,61217.0,0.74818289]
[1719647128718,0.72714601,61218.0,61217.0,0.74818289]
[1719647129377,0.39079301,61218.0,61217.0,0.74818289]